bitfinex-derivatives/quotes_BTCF0:USTF0_20240824
["timestamp","ask_amount","ask_price","bid_price","bid_amount"]
[1724514630629,0.22204,63976.0,63975.0,0.01808]
[1724514631839,0.300158,63976.0,63975.0,0.01808]
[1724514635746,0.378276,63976.0,63975.0,0.01808]
[1724514636137,0.078126,63970.0,63966.0,0.04680668]
[1724514636338,0.078126,63970.0,63960.0,0.09290668]
[1724514636339,0.078136,63962.0,63960.0,0.09290668]
[1724514636847,0.078136,63962.0,63960.0,0.0461]
[1724514637042,0.12465354,63962.0,63961.0,0.04680668]
[1724514637241,0.11565354,63962.0,63961.0,0.04680668]
[1724514638251,0.070136,63962.0,63961.0,0.04680668]
[1724514638634,0.071136,63962.0,63961.0,0.04680668]
[1724514639545,0.071136,63962.0,63960.0,0.0551]
[1724514639546,0.071136,63962.0,63960.0,0.10190668]
[1724514640451,0.09,63961.0,63960.0,0.09290668]
[1724514641944,0.091,63961.0,63960.0,0.09290668]
[1724514642149,0.092,63961.0,63960.0,0.09290668]
[1724514642852,0.092,63961.0,63960.0,0.0461]
[1724514644341,0.09204,63961.0,63960.0,0.0461]
[1724514652852,0.00204,63961.0,63960.0,0.0461]
[1724514653048,0.09204,63961.0,63960.0,0.0461]
[1724514653963,0.00204,63961.0,63960.0,0.0461]
[1724514654158,0.09204,63961.0,63960.0,0.0461]
[1724514655162,0.09204,63961.0,63960.0,0.09290668]
[1724514657264,0.09204,63961.0,63960.0,0.0461]
[1724514659161,0.09204,63961.0,63960.0,0.10852439]
[1724514660255,0.09204,63961.0,63960.0,0.0461]
[1724514660459,0.170177,63961.0,63960.0,0.0461]
[1724514660668,0.21669454,63961.0,63960.0,0.0461]
[1724514660964,0.170177,63961.0,63960.0,0.10856055]
[1724514661169,0.21669454,63961.0,63960.0,0.10856055]
[1724514661364,0.170177,63961.0,63960.0,0.0461]
[1724514662264,0.170177,63961.0,63960.0,0.10857256]
[1724514664372,0.23220289,63961.0,63960.0,0.0461]
[1724514665264,0.170177,63961.0,63960.0,0.0461]
[1724514665459,0.23229915,63961.0,63960.0,0.0461]
[1724514666161,0.170177,63961.0,63960.0,0.0461]
[1724514669072,0.23230084,63961.0,63960.0,0.10861512]
[1724514669666,0.23230084,63961.0,63960.0,0.0461]
[1724514670763,0.23230084,63961.0,63960.0,0.10861328]
[1724514671568,0.23230084,63961.0,63960.0,0.0461]
[1724514673070,0.09204,63961.0,63960.0,0.124238]
[1724514675380,0.01711934,63963.0,63962.0,0.078136]
[1724514675566,0.01735385,63968.0,63962.0,0.3027022]
[1724514675870,0.00023451,63968.0,63967.0,0.3608]
[1724514676065,0.00023451,63968.0,63967.0,0.57333488]
[1724514676268,0.00023451,63968.0,63967.0,1.52046388]
[1724514677277,0.00123451,63968.0,63967.0,1.52046388]
[1724514677770,0.00223451,63968.0,63967.0,1.59847323]
[1724514678171,0.00223451,63968.0,63967.0,1.59947323]
[1724514678474,0.00223451,63968.0,63967.0,1.48043835]
[1724514678873,0.00223451,63968.0,63967.0,1.57043835]
[1724514679276,0.00223451,63968.0,63967.0,1.492429]
[1724514679775,0.09223451,63968.0,63967.0,1.402429]
[1724514680479,0.09223451,63968.0,63967.0,0.533429]
[1724514681573,0.09223451,63968.0,63967.0,1.002429]
[1724514682382,0.09223451,63968.0,63967.0,0.533429]
[1724514682690,0.09223451,63968.0,63967.0,0.60869346]
[1724514683681,0.09223451,63968.0,63967.0,1.07769346]
[1724514684572,0.09223451,63968.0,63967.0,0.60869346]
[1724514685180,0.09223451,63968.0,63967.0,0.54635132]
[1724514685773,0.09223451,63968.0,63967.0,0.45285132]
[1724514686684,0.09223451,63968.0,63967.0,0.49959939]
[1724514686982,0.00223451,63968.0,63967.0,0.49959939]
[1724514687170,0.09223451,63968.0,63967.0,0.49959939]
[1724514688275,0.09223451,63968.0,63967.0,0.45285132]
[1724514688486,0.09223451,63968.0,63967.0,0.49959878]
[1724514689483,0.09223451,63968.0,63967.0,0.49959889]
[1724514689784,0.09223451,63968.0,63967.0,0.37472232]
[1724514690467,0.17036251,63968.0,63967.0,0.42147354]
[1724514690783,0.17036251,63968.0,63967.0,0.01392232]
[1724514691785,0.17036251,63968.0,63967.0,0.001]
[1724514701594,0.23248635,63968.0,63967.0,0.001]
[1724514702377,0.17036251,63968.0,63967.0,0.001]
[1724514702581,0.23234723,63968.0,63967.0,0.001]
[1724514703891,0.14234723,63968.0,63967.0,0.001]
[1724514704097,0.17036251,63968.0,63967.0,0.001]
[1724514705384,0.23234723,63968.0,63967.0,0.001]
[1724514706795,0.17036251,63968.0,63967.0,0.001]
[1724514707096,0.23232294,63968.0,63967.0,0.001]
[1724514707283,0.17036251,63968.0,63967.0,0.001]
[1724514708587,0.17036251,63968.0,63961.0,0.04675122]
[1724514708795,0.078137,63961.0,63960.0,4e-05]
[1724514708989,0.14009566,63961.0,63960.0,4e-05]
[1724514709288,0.125637,63961.0,63960.0,4e-05]
[1724514709692,0.125677,63961.0,63960.0,4e-05]
[1724514710090,0.18762473,63961.0,63960.0,4e-05]
[1724514710489,0.125677,63961.0,63960.0,4e-05]
[1724514710686,0.18762473,63961.0,63960.0,4e-05]
[1724514710989,0.1886192,63961.0,63960.0,4e-05]
[1724514711292,0.1896192,63961.0,63960.0,4e-05]
[1724514712196,0.127677,63961.0,63960.0,4e-05]
[1724514714991,0.18961065,63961.0,63960.0,4e-05]
[1724514715496,0.127677,63961.0,63960.0,4e-05]
[1724514717197,0.18961065,63961.0,63960.0,4e-05]
[1724514717395,0.168143,63956.0,63955.0,0.00023451]
[1724514717794,0.637223,63956.0,63955.0,0.00023451]
[1724514718298,0.168143,63956.0,63955.0,0.00023451]
[1724514718892,0.169143,63956.0,63955.0,0.00023451]
[1724514720396,0.079143,63956.0,63955.0,0.00023451]
[1724514720598,0.080143,63956.0,63955.0,0.00023451]
[1724514721293,0.002,63956.0,63955.0,0.00023451]
[1724514721491,0.002,63956.0,63955.0,0.10280991]
[1724514722597,0.002,63956.0,63955.0,0.1028089]
[1724514722797,0.002,63956.0,63955.0,0.07837851]
[1724514723097,0.002,63956.0,63955.0,0.5718889]
[1724514725495,0.00204,63956.0,63955.0,0.1028089]
[1724514726005,0.00204,63956.0,63955.0,0.10280696]
[1724514729713,0.00204,63956.0,63955.0,0.07837851]
[1724514729899,0.00204,63956.0,63955.0,0.10280725]
[1724514732609,0.00204,63956.0,63955.0,0.07837851]
[1724514732810,0.00204,63956.0,63955.0,0.10280715]
[1724514733311,0.080183,63956.0,63955.0,0.02466315]
[1724514735919,0.080183,63956.0,63955.0,0.00023451]
[1724514736115,0.080183,63956.0,63955.0,0.02466571]
[1724514738023,0.300183,63956.0,63955.0,0.02466571]
[1724514739120,0.300183,63956.0,63955.0,0.02466586]
[1724514739613,0.300183,63956.0,63955.0,0.0246657]
[1724514740908,0.300183,63956.0,63955.0,0.00023451]
[1724514741117,0.300183,63956.0,63955.0,0.02466583]
[1724514742209,0.300183,63956.0,63955.0,0.07151152]
[1724514742409,0.170183,63956.0,63955.0,0.0470802]
[1724514742815,0.170183,63956.0,63955.0,0.07151158]
[1724514743623,0.170183,63956.0,63955.0,0.0715108]
[1724514744624,0.170183,63956.0,63955.0,0.02466589]
[1724514745212,0.170413,63956.0,63955.0,0.02466589]
[1724514745616,0.170413,63956.0,63955.0,0.00023451]
[1724514745812,0.170413,63956.0,63955.0,0.02466558]
[1724514748725,0.170413,63956.0,63955.0,0.07151018]
[1724514748920,0.248556,63956.0,63955.0,0.07151018]
[1724514749116,0.248556,63956.0,63955.0,0.02466558]
[1724514749422,0.170413,63956.0,63955.0,0.00023451]
[1724514749623,0.24796614,63956.0,63955.0,0.02466822]
[1724514750220,0.080413,63956.0,63955.0,0.02466822]
[1724514750422,0.00227,63956.0,63955.0,0.07151282]
[1724514750624,0.00227,63956.0,63955.0,0.14965682]
[1724514750822,0.00227,63956.0,63955.0,0.16524985]
[1724514750823,0.09227,63956.0,63955.0,0.16524985]
[1724514751522,0.09227,63956.0,63955.0,0.10280962]
[1724514752324,0.09227,63956.0,63955.0,0.10280823]
[1724514753119,0.09227,63956.0,63955.0,0.46360823]
[1724514754714,0.09227,63956.0,63955.0,0.52605943]
[1724514757121,0.09227,63956.0,63955.0,0.46360823]
[1724514757430,0.09227,63956.0,63955.0,0.52605943]
[1724514757618,0.09227,63956.0,63955.0,0.46360823]
[1724514758021,0.09227,63956.0,63955.0,0.52605943]
[1724514758216,0.09227,63956.0,63955.0,0.46360823]
[1724514758520,0.170413,63956.0,63955.0,0.02466423]
[1724514759120,0.170413,63956.0,63955.0,0.02466531]
[1724514760623,0.170413,63956.0,63955.0,0.08711651]
[1724514761028,0.09227,63956.0,63955.0,0.02466531]
[1724514761329,0.09227,63956.0,63955.0,0.08711651]
[1724514761932,0.170413,63956.0,63955.0,0.06268571]
[1724514762239,0.2324544,63956.0,63955.0,0.02466508]
[1724514764537,0.170413,63956.0,63955.0,0.02466508]
[1724514765126,0.170413,63956.0,63955.0,0.087184]
[1724514768629,0.170413,63956.0,63955.0,0.02466508]
[1724514769022,0.170413,63956.0,63955.0,0.02466563]
[1724514769227,0.170413,63956.0,63955.0,0.04909675]
[1724514771432,0.217913,63956.0,63955.0,0.04909675]
[1724514772025,0.217913,63956.0,63955.0,0.04909766]
[1724514772229,0.217913,63956.0,63955.0,0.09598155]
[1724514772638,0.578713,63956.0,63955.0,0.09598155]
[1724514774034,0.578713,63956.0,63955.0,0.04909766]
[1724514774338,0.577713,63956.0,63955.0,0.04909766]
[1724514774524,0.578713,63956.0,63955.0,0.04909766]
[1724514775035,0.578713,63956.0,63955.0,0.02466654]
[1724514775237,0.65626614,63956.0,63955.0,0.02466654]
[1724514775431,0.578713,63956.0,63955.0,0.02466654]
[1724514775633,0.65626614,63956.0,63955.0,0.02466654]
[1724514776339,0.578713,63956.0,63955.0,0.02466654]
[1724514778226,0.578713,63956.0,63955.0,0.07155043]
[1724514778741,0.578713,63956.0,63955.0,0.07155091]
[1724514780843,0.578713,63956.0,63955.0,0.07153688]
[1724514781137,0.578713,63956.0,63955.0,0.04710437]
[1724514781329,0.578483,63956.0,63955.0,0.07153687]
[1724514782337,0.578483,63956.0,63955.0,0.02466701]
[1724514783040,0.578483,63956.0,63955.0,0.00023451]
[1724514783238,0.578483,63956.0,63955.0,0.02466701]
[1724514785235,1.12511614,63956.0,63955.0,0.02466701]
[1724514785547,0.68196052,63956.0,63955.0,0.02466701]
[1724514785733,0.656626,63956.0,63955.0,0.02466701]
[1724514785930,0.73439006,63956.0,63955.0,0.02466701]
[1724514786135,0.656626,63956.0,63955.0,0.02466701]
[1724514786334,0.64438668,63956.0,63955.0,0.02466701]
[1724514786543,0.73438668,63956.0,63955.0,0.02466701]
[1724514787746,0.73438668,63956.0,63955.0,0.00023451]
[1724514787935,0.73438668,63956.0,63955.0,0.02466753]
[1724514788339,0.73438668,63956.0,63955.0,0.00023451]
[1724514788645,0.73438668,63956.0,63955.0,0.02466753]
[1724514789535,0.295826,63956.0,63955.0,0.02466753]
[1724514789739,0.656626,63956.0,63955.0,0.02466753]
[1724514790544,0.73439603,63956.0,63955.0,0.02466753]
[1724514791842,0.68196099,63956.0,63955.0,0.02466753]
[1724514792753,0.32116099,63956.0,63955.0,0.02466753]
[1724514793054,0.656626,63956.0,63955.0,0.02466753]
[1724514794347,0.6819611,63956.0,63955.0,0.00023451]
[1724514794549,0.6819611,63956.0,63955.0,0.02466802]
[1724514795654,0.6821911,63956.0,63955.0,0.02466802]
[1724514797651,0.6821911,63956.0,63955.0,0.00023451]
[1724514797849,0.6821911,63956.0,63955.0,0.02466809]
[1724514798149,0.6821911,63956.0,63955.0,0.00023451]
[1724514798349,0.6821911,63956.0,63955.0,0.02466809]
[1724514801152,0.6346911,63956.0,63955.0,0.02466809]
[1724514803258,0.6346906,63956.0,63955.0,0.02466809]
[1724514804150,0.6346906,63956.0,63955.0,0.00023451]
[1724514804359,0.6346906,63956.0,63955.0,0.0246677]
[1724514806455,0.6346906,63956.0,63955.0,0.0246681]
[1724514807856,0.6346906,63956.0,63955.0,0.00023451]
[1724514808159,0.6346906,63956.0,63955.0,0.02466793]
[1724514810161,0.72791378,63956.0,63955.0,0.02466793]
[1724514810355,0.6346906,63956.0,63955.0,0.02466793]
[1724514810758,0.6346906,63956.0,63955.0,0.00023451]
[1724514811060,0.6346906,63956.0,63955.0,0.02466807]
[1724514811658,0.5446906,63956.0,63955.0,0.02466807]
[1724514811868,0.6346906,63956.0,63955.0,0.02466807]
[1724514813065,0.63469155,63956.0,63955.0,0.02466807]
[1724514813364,0.72791473,63956.0,63955.0,0.02466807]
[1724514813966,0.72791473,63956.0,63955.0,0.00023451]
[1724514814269,0.72791473,63956.0,63955.0,0.02466849]
[1724514818467,0.63469155,63956.0,63955.0,0.02466849]
[1724514818973,0.63469155,63956.0,63955.0,0.02466784]
[1724514820664,0.55654855,63956.0,63955.0,0.02466784]
[1724514820868,0.55654855,63956.0,63955.0,0.02466772]
[1724514821371,0.55654855,63956.0,63955.0,0.07153758]
[1724514822072,0.55654855,63956.0,63955.0,0.02466772]
[1724514822472,0.55654739,63956.0,63955.0,0.02466772]
[1724514823778,0.55654739,63956.0,63955.0,0.02466733]
[1724514825476,0.38840439,63956.0,63955.0,0.02466733]
[1724514825672,0.00227,63956.0,63955.0,1.06189133]
[1724514825875,0.06455113,63956.0,63955.0,1.42269133]
[1724514826080,0.00227,63956.0,63955.0,1.54175196]
[1724514826374,0.00227,63956.0,63955.0,1.61983121]
[1724514826582,0.00227,63956.0,63955.0,1.14174436]
[1724514826780,0.00227,63956.0,63955.0,1.21983039]
[1724514827174,0.00227,63956.0,63955.0,1.21982959]
[1724514827382,0.00227,63956.0,63955.0,1.07634442]
[1724514827676,0.00227,63956.0,63955.0,1.2198267]
[1724514827976,0.00227,63956.0,63955.0,1.42268669]
[1724514828489,0.00227,63956.0,63955.0,1.47028669]
[1724514830372,0.00227,63956.0,63955.0,1.44585851]
[1724514830570,0.00227,63956.0,63955.0,1.47028724]
[1724514831379,0.00204,63956.0,63955.0,1.47028724]
[1724514832277,0.09204,63956.0,63955.0,1.45621795]
[1724514832586,0.09204,63956.0,63955.0,0.99382407]
[1724514833277,0.09204,63956.0,63955.0,0.52474407]
[1724514833481,0.09204,63956.0,63955.0,0.99382407]
[1724514833676,0.09204,63956.0,63955.0,0.50031534]
[1724514833877,0.09204,63956.0,63955.0,0.52474529]
[1724514839785,0.170183,63956.0,63955.0,0.49338782]
[1724514839987,0.170183,63956.0,63955.0,0.44660129]
[1724514840183,0.170183,63956.0,63955.0,0.49338782]
[1724514840383,0.170183,63956.0,63955.0,0.4322518]
[1724514840589,0.170183,63956.0,63955.0,0.38546527]
[1724514842784,0.170183,63956.0,63955.0,0.02466527]
[1724514843286,0.170183,63956.0,63955.0,0.02466607]
[1724514844984,0.21689596,63956.0,63955.0,0.02466607]
[1724514845184,0.170183,63956.0,63955.0,0.02466607]
[1724514845681,0.170183,63956.0,63955.0,0.00023451]
[1724514845883,0.170413,63956.0,63955.0,0.00023451]
[1724514847992,0.170413,63956.0,63955.0,0.02466833]
[1724514848185,0.170413,63956.0,63955.0,0.00023451]
[1724514848490,0.170413,63956.0,63955.0,0.0246677]
[1724514848691,0.170413,63956.0,63955.0,0.00023451]
[1724514849987,0.531213,63956.0,63955.0,0.00023451]
[1724514851995,0.078153,63948.0,63947.0,0.04678653]
[1724514852184,0.12477229,63948.0,63947.0,0.07122126]
[1724514852582,0.12477229,63948.0,63947.0,0.04678653]
[1724514853092,0.12481229,63948.0,63947.0,0.07122119]
[1724514853294,0.12481229,63948.0,63947.0,0.02443466]
[1724514853694,0.079193,63948.0,63947.0,0.07123656]
[1724514854395,0.080193,63948.0,63947.0,0.02443466]
[1724514855808,0.080193,63948.0,63946.0,0.0468019]
[1724514856097,0.080193,63948.0,63947.0,0.02443408]
[1724514859405,0.080193,63948.0,63947.0,0.0244342]
[1724514862707,0.080193,63948.0,63946.0,0.0468019]
[1724514862896,0.080193,63948.0,63947.0,0.02443415]
[1724514864004,0.50315206,63948.0,63947.0,0.02443415]
[1724514864194,0.440993,63948.0,63947.0,0.02443415]
[1724514864400,0.440993,63948.0,63944.0,0.01338896]
[1724514864401,0.36284,63948.0,63944.0,0.01338896]
[1724514864703,0.168157,63945.0,63942.0,0.0468019]
[1724514864906,0.04662001,63943.0,63942.0,0.0468019]
[1724514865200,0.12477801,63944.0,63942.0,0.02443645]
[1724514865399,0.078158,63944.0,63943.0,0.02439645]
[1724514865601,0.14031417,63947.0,63943.0,0.02439645]
[1724514865909,0.09,63944.0,63943.0,0.078159]
[1724514866600,0.13760534,63944.0,63943.0,0.078159]
[1724514868407,0.091,63944.0,63943.0,0.078159]
[1724514869200,0.13760499,63944.0,63943.0,0.078159]
[1724514869401,0.13760499,63944.0,63943.0,0.1249609]
[1724514869402,0.092,63944.0,63943.0,0.1249609]
[1724514869601,0.13860875,63944.0,63943.0,0.078159]
[1724514870109,0.092,63944.0,63943.0,0.078159]
[1724514870604,0.170157,63944.0,63943.0,0.078159]
[1724514871107,0.169157,63944.0,63943.0,0.078159]
[1724514871302,0.170157,63944.0,63943.0,0.078159]
[1724514871501,0.21676575,63944.0,63943.0,0.078159]
[1724514873304,0.170157,63944.0,63943.0,0.14055288]
[1724514873519,0.21676575,63944.0,63943.0,0.078159]
[1724514873908,0.170157,63944.0,63943.0,0.14055288]
[1724514874312,0.21676575,63944.0,63943.0,0.14055288]
[1724514875303,0.21676575,63944.0,63943.0,0.078159]
[1724514875899,0.170157,63944.0,63943.0,0.078159]
[1724514876407,0.216776,63944.0,63943.0,0.078159]
[1724514876606,0.170157,63944.0,63943.0,0.078159]
[1724514876811,0.078159,63943.0,63942.0,4e-05]
[1724514877711,0.1247778,63943.0,63942.0,0.0244748]
[1724514877911,0.078159,63943.0,63942.0,0.0244748]
[1724514878106,0.1258178,63943.0,63942.0,0.0244748]
[1724514878611,0.1258178,63943.0,63942.0,0.02447482]
[1724514878918,0.080199,63943.0,63942.0,0.02447482]
[1724514881116,0.080199,63943.0,63942.0,0.38527482]
[1724514881316,0.080199,63943.0,63942.0,0.02447482]
[1724514881514,0.080199,63943.0,63942.0,0.38527482]
[1724514883913,0.170199,63943.0,63942.0,0.46343482]
[1724514884113,0.170199,63943.0,63942.0,0.38527482]
[1724514884505,0.080199,63943.0,63942.0,0.38527482]
[1724514884707,0.080199,63943.0,63942.0,0.36084]
[1724514884906,0.080199,63943.0,63942.0,0.385274]
[1724514885310,0.080199,63943.0,63942.0,0.38527399]
[1724514885917,0.080199,63943.0,63942.0,0.46343399]
[1724514890515,0.080199,63943.0,63942.0,0.38527399]
[1724514892523,0.080429,63943.0,63942.0,0.38527399]
[1724514893520,0.12708321,63943.0,63942.0,0.38527399]
[1724514894116,0.04892421,63943.0,63942.0,0.439]
[1724514894323,0.00227,63943.0,63942.0,0.6606054]
[1724514894628,0.00227,63943.0,63942.0,0.58251949]
[1724514894920,0.00227,63943.0,63942.0,0.54157374]
[1724514894921,0.04892661,63943.0,63942.0,0.54157374]
[1724514895128,0.12708561,63943.0,63942.0,0.46341374]
[1724514895315,0.080429,63943.0,63942.0,0.38527469]
[1724514897322,0.080429,63943.0,63942.0,0.38527482]
[1724514897828,0.12708555,63943.0,63942.0,0.58249888]
[1724514898017,0.12708555,63943.0,63942.0,0.46341387]
[1724514898423,0.080429,63943.0,63942.0,0.38527482]
[1724514900426,0.080429,63943.0,63942.0,0.36084]
[1724514900633,0.080429,63943.0,63942.0,0.38527613]
[1724514900826,0.14258917,63943.0,63942.0,0.38527613]
[1724514901022,0.080429,63943.0,63942.0,0.02447613]
[1724514901322,0.23258917,63943.0,63942.0,0.02447613]
[1724514901520,0.170429,63943.0,63942.0,0.02447613]
[1724514902531,0.170429,63943.0,63942.0,0.10263613]
[1724514902717,0.21709111,63943.0,63942.0,0.29986353]
[1724514903234,0.170429,63943.0,63942.0,0.10263613]
[1724514903435,0.170429,63943.0,63942.0,0.12707187]
[1724514903624,0.23258917,63943.0,63942.0,0.0733465]
[1724514904129,0.23258917,63943.0,63942.0,0.13587423]
[1724514905533,0.23258917,63943.0,63942.0,0.0733465]
[1724514905729,0.23258917,63943.0,63942.0,0.13587423]
[1724514905925,0.23258917,63943.0,63942.0,0.1114382]
[1724514906337,0.23258917,63943.0,63942.0,0.06256773]
[1724514906535,0.23258917,63943.0,63942.0,0.02447673]
[1724514906738,0.170429,63943.0,63942.0,0.02447673]
[1724514906933,0.170429,63943.0,63942.0,0.08700446]
[1724514909331,0.170429,63943.0,63942.0,0.02447673]
[1724514909536,0.170429,63943.0,63942.0,0.08698614]
[1724514909842,0.170429,63943.0,63942.0,0.02447673]
[1724514912148,0.170429,63943.0,63942.0,4e-05]
[1724514912344,0.170429,63943.0,63942.0,0.02447584]
[1724514912541,0.170429,63943.0,63942.0,4e-05]
[1724514912854,0.170429,63943.0,63942.0,0.02447591]
[1724514915451,0.170429,63943.0,63942.0,4e-05]
[1724514915652,0.170429,63943.0,63942.0,0.02447559]
[1724514917147,0.23262766,63943.0,63942.0,0.02447559]
[1724514918655,0.23262766,63943.0,63942.0,0.02447584]
[1724514918858,0.170429,63943.0,63942.0,0.02447584]
[1724514921446,0.23239766,63943.0,63942.0,0.02447584]
[1724514921752,0.23239766,63943.0,63942.0,4e-05]
[1724514922055,0.23239766,63943.0,63942.0,0.02447585]
[1724514922357,0.170199,63943.0,63942.0,4e-05]
[1724514922551,0.170199,63943.0,63942.0,0.02447585]
[1724514924252,0.23237253,63943.0,63942.0,0.08700127]
[1724514925948,0.170199,63943.0,63942.0,0.08700127]
[1724514928058,0.170199,63943.0,63942.0,0.08700713]
[1724514928359,0.248358,63943.0,63942.0,0.02447585]
[1724514928560,0.248358,63943.0,63942.0,0.07136935]
[1724514928561,0.37590146,63943.0,63942.0,0.07136935]
[1724514928862,0.298058,63943.0,63942.0,0.07136935]
[1724514929549,0.37374613,63943.0,63942.0,4e-05]
[1724514929857,0.37374613,63943.0,63942.0,0.02447909]
[1724514929858,0.37574613,63943.0,63942.0,0.02447909]
[1724514930655,0.73654613,63943.0,63942.0,4e-05]
[1724514930860,0.73654613,63943.0,63942.0,0.0244791]
[1724514930861,0.658858,63943.0,63942.0,0.0244791]
[1724514931552,0.73654613,63943.0,63942.0,0.0244791]
[1724514931753,0.658858,63943.0,63942.0,0.0244791]
[1724514931954,0.73654613,63943.0,63942.0,4e-05]
[1724514932161,0.73654613,63943.0,63942.0,0.02447908]
[1724514932359,0.658858,63943.0,63942.0,0.02447908]
[1724514932662,0.73654613,63943.0,63942.0,0.02447908]
[1724514933557,0.658858,63943.0,63942.0,0.02447908]
[1724514933766,0.609158,63943.0,63942.0,0.02447908]
[1724514935752,0.609388,63943.0,63942.0,0.02447908]
[1724514936265,0.609388,63943.0,63942.0,0.07137258]
[1724514938763,0.609388,63943.0,63942.0,0.07137097]
[1724514939263,0.248588,63943.0,63942.0,0.07137097]
[1724514941465,0.248588,63943.0,63942.0,0.02447747]
[1724514942559,0.248588,63943.0,63942.0,4e-05]
[1724514942762,0.248588,63943.0,63942.0,0.02447747]
[1724514944568,0.170429,63943.0,63942.0,0.02447747]
[1724514945568,0.170429,63943.0,63942.0,4e-05]
[1724514945870,0.170429,63943.0,63942.0,0.02447718]
[1724514946270,0.170429,63943.0,63942.0,0.07137068]
[1724514946574,0.170429,63943.0,63942.0,0.02447718]
[1724514948663,0.080429,63943.0,63942.0,0.02447718]
[1724514948964,0.170429,63943.0,63942.0,0.0244785]
[1724514951771,0.170429,63943.0,63942.0,0.071372]
[1724514951971,0.170429,63943.0,63942.0,0.0244785]
[1724514952172,0.170429,63943.0,63942.0,0.02447778]
[1724514952566,0.170429,63943.0,63942.0,4e-05]
[1724514952881,0.170429,63943.0,63942.0,0.02447778]
[1724514953378,0.24811713,63943.0,63942.0,0.02447778]
[1724514954274,0.170429,63943.0,63942.0,0.02447778]
[1724514954580,0.24811713,63943.0,63942.0,0.02447778]
[1724514955183,0.080429,63943.0,63942.0,0.02447778]
[1724514955479,0.24811713,63943.0,63942.0,0.02447778]
[1724514955677,0.170429,63943.0,63942.0,0.02447819]
[1724514956269,0.080429,63943.0,63942.0,0.02447819]
[1724514956573,0.170429,63943.0,63942.0,0.02447819]
[1724514958170,0.080429,63943.0,63942.0,0.02447819]
[1724514958376,0.170429,63943.0,63942.0,0.02447819]
[1724514958879,0.170429,63943.0,63942.0,4e-05]
[1724514959070,0.170429,63943.0,63942.0,0.02447732]
[1724514960784,0.170429,63943.0,63942.0,0.02447729]
[1724514961167,0.170429,63943.0,63942.0,4e-05]
[1724514961377,0.170429,63943.0,63942.0,0.02447729]
[1724514963583,0.170429,63943.0,63942.0,4e-05]
[1724514963772,0.170429,63943.0,63942.0,0.02447729]
[1724514964974,0.170199,63943.0,63942.0,0.02447729]
[1724514968088,0.170199,63943.0,63942.0,0.02447689]
[1724514971476,0.170199,63943.0,63942.0,0.02447688]
[1724514971987,0.170199,63943.0,63942.0,4e-05]
[1724514972178,0.170199,63943.0,63942.0,0.02447687]
[1724514973682,0.00204,63943.0,63942.0,0.17700815]
[1724514973983,0.00204,63943.0,63942.0,0.31172151]
[1724514974389,0.00180549,63943.0,63942.0,1.18088151]
[1724514974574,0.00023451,63954.0,63942.0,1.18088151]
[1724514974575,0.04686913,63954.0,63942.0,1.23181731]
[1724514974781,0.04686913,63954.0,63953.0,0.4508]
[1724514974975,0.04686913,63954.0,63953.0,0.91988]
[1724514975179,0.00023451,63954.0,63953.0,1.42245754]
[1724514975393,0.00023451,63954.0,63953.0,1.78325754]
[1724514975686,0.04663462,63969.0,63961.0,0.078136]
[1724514975884,0.078126,63970.0,63968.0,0.40760276]
[1724514976087,0.12476062,63970.0,63969.0,0.02443154]
[1724514976680,0.078126,63970.0,63969.0,0.11447154]
[1724514977288,0.079126,63970.0,63969.0,0.11447154]
[1724514978075,0.079126,63970.0,63969.0,0.11446436]
[1724514978486,0.080126,63970.0,63969.0,0.11446436]
[1724514978791,0.080126,63970.0,63969.0,0.15976436]
[1724514978985,0.080126,63970.0,63969.0,0.13634]
[1724514978986,0.079126,63970.0,63969.0,0.13634]
[1724514979181,0.079126,63970.0,63969.0,0.13611]
[1724514979680,0.001,63970.0,63969.0,0.13611]
[1724514982385,0.001,63970.0,63969.0,1.083197]
[1724514982785,0.001,63970.0,63969.0,1.12993853]
[1724514983394,0.001,63970.0,63969.0,1.083197]
[1724514983579,0.00023451,63976.0,63969.0,0.9153]
[1724514983580,0.09023451,63976.0,63969.0,0.9153]
[1724514983780,0.001,63970.0,63969.0,0.05334]
[1724514983986,0.079126,63970.0,63969.0,0.05334]
[1724514984187,0.079126,63970.0,63969.0,0.5223]
[1724514984384,0.078126,63970.0,63969.0,0.5153]
[1724514984593,0.169126,63970.0,63969.0,0.06034]
[1724514985684,0.169126,63970.0,63969.0,0.07334]
[1724514985991,0.079126,63970.0,63969.0,0.07334]
[1724514986194,0.001,63970.0,63969.0,0.9423]
[1724514986379,0.001,63970.0,63969.0,1.020427]
[1724514986789,0.001,63970.0,63969.0,0.620427]
[1724514987189,0.001,63970.0,63969.0,0.151467]
[1724514987994,0.001,63970.0,63969.0,0.620427]
[1724514988191,0.001,63970.0,63969.0,1.020427]
[1724514988790,0.001,63970.0,63969.0,0.620427]
[1724514988991,0.001,63970.0,63969.0,1.020427]
[1724514989198,0.001,63970.0,63969.0,0.620427]
[1724514989696,0.001,63970.0,63969.0,0.151467]
[1724514997394,0.001,63970.0,63969.0,0.19820853]
[1724514997804,0.001,63970.0,63969.0,1.06716853]
[1724514998500,0.001,63970.0,63969.0,1.020427]
[1724514999008,0.001,63970.0,63969.0,1.06700512]
[1724514999501,0.001,63970.0,63969.0,1.020427]
[1724515001203,0.001,63970.0,63969.0,1.44363068]
[1724515001410,0.001,63970.0,63969.0,1.381227]
[1724515003209,0.001,63970.0,63969.0,1.4592316]
[1724515003404,0.001,63970.0,63969.0,1.50024179]
[1724515004508,0.001,63970.0,63969.0,1.59380728]
[1724515004821,0.001,63970.0,63969.0,1.50024097]
[1724515005515,0.001,63970.0,63969.0,1.62631945]
[1724515007022,0.001,63970.0,63969.0,1.59385277]
[1724515009524,0.001,63970.0,63969.0,1.67197977]
[1724515009713,0.001,63970.0,63969.0,1.57836797]
[1724515011621,0.001,63970.0,63969.0,1.70451106]
[1724515011813,0.001,63970.0,63969.0,2.06531106]
[1724515013312,0.001,63970.0,63969.0,2.15531106]
[1724515013821,0.00023451,63976.0,63975.0,0.16812]
[1724515014021,0.00023451,63976.0,63975.0,0.64793397]
[1724515015216,0.00023451,63976.0,63975.0,0.64797397]
[1724515015421,0.00123451,63976.0,63975.0,0.65697397]
[1724515017024,0.00223451,63976.0,63975.0,0.66597397]
[1724515017222,0.00223451,63976.0,63975.0,0.75959513]